[Event "CCT Chessable Masters Play-In 2025"]
[Site "Online"]
[Date "2025.02.17"]
[Round "1.48"]
[White "Guliyev, Namig"]
[Black "Eljanov, Pavel"]
[Result "1/2-1/2"]
[ECO "C91"]
[WhiteElo "2486"]
[BlackElo "2658"]
[PlyCount "194"]
[EventDate "2025.02.13"]
[EventType "swiss"]
[EventCountry "NET"]
[TimeControl "600"]
[BlackClock "0:00:11"]

1. e4 {[%emt 0:00:52]} e5 {[%emt 0:00:04]} 2. Nf3 {[%emt 0:00:06]} Nc6 {[%emt 0:00:01]} 3. Bb5 {[%emt 0:00:04]} a6 {[%emt 0:00:01]} 4. Ba4 {[%emt 0:00:01]} Nf6 {[%emt 0:00:02]} 5. O-O {[%emt 0:00:01]} Be7 {[%emt 0:00:01]} 6. Re1 {[%emt 0:00:01]} b5 {[%emt 0:00:02]} 7. Bb3 {[%emt 0:00:00]} d6 {[%emt 0:00:00]} 8. c3 {[%emt 0:00:02]} O-O {[%emt 0:00:03]} 9. d4 {[%emt 0:00:01]} Bg4 {[%emt 0:00:06]} 10. Be3 {[%emt 0:00:19]} Bh5 {[%emt 0:00:03]} 11. Nbd2 {[%emt 0:00:02]} Na5 {[%emt 0:00:43]} 12. Bc2 {[%emt 0:00:07]} Ng4 {[%emt 0:00:02]} 13. Qe2 {[%emt 0:00:05]} Re8 {[%emt 0:00:31]} 14. a4 {[%emt 0:00:40]} Nxe3 {[%emt 0:00:29]} 15. Qxe3 {[%emt 0:00:01]} exd4 {[%emt 0:00:26]} 16. cxd4 {[%emt 0:00:07]} c5 {[%emt 0:00:08]} 17. dxc5 {[%emt 0:00:05]} dxc5 {[%emt 0:00:02]} 18. e5 {[%emt 0:00:01]} Qb6 {[%emt 0:00:21]} 19. axb5 {[%emt 0:00:07]} axb5 {[%emt 0:00:01]} 20. h3 {[%emt 0:00:03]} Bf8 {[%emt 0:00:34]} 21. g4 {[%emt 0:00:37]} Bg6 {[%emt 0:00:02]} 22. Bxg6 {[%emt 0:00:03]} Qxg6 {[%emt 0:00:29]} 23. Ne4 {[%emt 0:00:23]} Nc4 {[%emt 0:00:06]} 24. Rxa8 {[%emt 0:00:07]} Rxa8 {[%emt 0:00:49]} 25. Qc3 {[%emt 0:00:04]} h6 {[%emt 0:00:50]} 26. b3 {[%emt 0:00:05]} Nb6 {[%emt 0:00:01]} 27. Nxc5 {[%emt 0:00:38]} Rc8 {[%emt 0:00:01]} 28. b4 {[%emt 0:00:05]} Na4 {[%emt 0:00:01]} 29. Qb3 {[%emt 0:00:14]} Nxc5 {[%emt 0:00:13]} 30. bxc5 {[%emt 0:00:02]} Rxc5 {[%emt 0:00:02]} 31. Nd4 {[%emt 0:00:20]} h5 {[%emt 0:00:15]} 32. e6 {[%emt 0:00:14]} hxg4 {[%emt 0:00:05]} 33. exf7+ {[%emt 0:00:22]} Qxf7 {[%emt 0:00:04]} 34. Qxf7+ {[%emt 0:00:04]} Kxf7 {[%emt 0:00:01]} 35. hxg4 {[%emt 0:00:01]} b4 {[%emt 0:00:04]} 36. Kf1 {[%emt 0:01:25]} Bd6 {[%emt 0:00:44]} 37. Rd1 {[%emt 0:00:14]} Be5 {[%emt 0:00:06]} 38. Nf3 {[%emt 0:00:03]} Bf6 {[%emt 0:00:03]} 39. Rd7+ {[%emt 0:00:02]} Ke6 {[%emt 0:00:05]} 40. Rb7 {[%emt 0:00:00]} Rc4 {[%emt 0:00:01]} 41. g5 {[%emt 0:00:11]} Bc3 {[%emt 0:00:01]} 42. Ke2 {[%emt 0:00:00]} Kd5 {[%emt 0:00:05]} 43. Kd3 {[%emt 0:00:13]} Rf4 {[%emt 0:00:02]} 44. Ng1 {[%emt 0:00:10]} Rxf2 {[%emt 0:00:05]} 45. Ne2 {[%emt 0:00:04]} Rf3+ {[%emt 0:00:02]} 46. Kc2 {[%emt 0:00:01]} Kc6 {[%emt 0:00:25]} 47. Rb8 {[%emt 0:00:11]} Kc7 {[%emt 0:00:14]} 48. Rb5 {[%emt 0:00:02]} Be1 {[%emt 0:00:03]} 49. Nd4 {[%emt 0:00:20]} Rc3+ {[%emt 0:00:01]} 50. Kb2 {[%emt 0:00:01]} Rd3 {[%emt 0:00:02]} 51. Ne6+ {[%emt 0:00:09]} Kc6 {[%emt 0:00:00]} 52. Rb8 {[%emt 0:00:04]} Re3 {[%emt 0:00:16]} 53. Nd4+ {[%emt 0:00:10]} Kc5 {[%emt 0:00:01]} 54. Nc2 {[%emt 0:00:01]} Bc3+ {[%emt 0:00:01]} 55. Kb3 {[%emt 0:00:01]} Rg3 {[%emt 0:00:00]} 56. Ka4 {[%emt 0:00:04]} Rxg5 {[%emt 0:00:04]} 57. Rb5+ {[%emt 0:00:03]} Kc4 {[%emt 0:00:02]} 58. Rxg5 {[%emt 0:00:00]} b3 {[%emt 0:00:02]} 59. Na3+ {[%emt 0:00:01]} Kd3 {[%emt 0:00:01]} 60. Kxb3 {[%emt 0:00:01]} Bf6 {[%emt 0:00:01]} 61. Rg6 {[%emt 0:00:01]} Ke4 {[%emt 0:00:01]} 62. Nc4 {[%emt 0:00:00]} Kf5 {[%emt 0:00:00]} 63. Rg2 {[%emt 0:00:05]} Kf4 {[%emt 0:00:01]} 64. Kc2 {[%emt 0:00:02]} Ke4 {[%emt 0:00:00]} 65. Kd2 {[%emt 0:00:02]} Bd4 {[%emt 0:00:03]} 66. Ke2 {[%emt 0:00:01]} Bf6 {[%emt 0:00:01]} 67. Nd6+ {[%emt 0:00:01]} Kd5 {[%emt 0:00:02]} 68. Ne8 {[%emt 0:00:00]} Be5 {[%emt 0:00:01]} 69. Nxg7 {[%emt 0:00:01]} Ba1 {[%emt 0:00:01]} 70. Nh5 {[%emt 0:00:00]} Ke5 {[%emt 0:00:01]} 71. Kf3 {[%emt 0:00:01]} Kd6 {[%emt 0:00:01]} 72. Nf4 {[%emt 0:00:00]} Kc7 {[%emt 0:00:01]} 73. Rg6 {[%emt 0:00:00]} Kd7 {[%emt 0:00:01]} 74. Ke4 {[%emt 0:00:01]} Kc7 {[%emt 0:00:01]} 75. Nd5+ {[%emt 0:00:00]} Kd7 {[%emt 0:00:00]} 76. Kd3 {[%emt 0:00:01]} Be5 {[%emt 0:00:02]} 77. Kc4 {[%emt 0:00:00]} Ba1 {[%emt 0:00:01]} 78. Kc5 {[%emt 0:00:00]} Bb2 {[%emt 0:00:01]} 79. Rd6+ {[%emt 0:00:01]} Ke8 {[%emt 0:00:00]} 80. Kc6 {[%emt 0:00:01]} Ba3 {[%emt 0:00:01]} 81. Rd7 {[%emt 0:00:01]} Kf8 {[%emt 0:00:01]} 82. Rb7 {[%emt 0:00:00]} Bc1 {[%emt 0:00:01]} 83. Nf6 {[%emt 0:00:02]} Be3 {[%emt 0:00:04]} 84. Ne4 {[%emt 0:00:00]} Ke8 {[%emt 0:00:01]} 85. Kd5 {[%emt 0:00:00]} Bf4 {[%emt 0:00:01]} 86. Ke6 {[%emt 0:00:00]} Kd8 {[%emt 0:00:01]} 87. Nf6 {[%emt 0:00:00]} Kc8 {[%emt 0:00:01]} 88. Rd7 {[%emt 0:00:00]} Kb8 {[%emt 0:00:00]} 89. Nd5 {[%emt 0:00:01]} Bg3 {[%emt 0:00:02]} 90. Nf4 {[%emt 0:00:00]} Bxf4 {[%emt 0:00:01]} 91. Rf7 {[%emt 0:00:02]} Be3 {[%emt 0:00:01]} 92. Rf8+ {[%emt 0:00:00]} Kc7 {[%emt 0:00:01]} 93. Rf7+ {[%emt 0:00:00]} Kc6 {[%emt 0:00:01]} 94. Rf3 {[%emt 0:00:00]} Bc5 {[%emt 0:00:01]} 95. Rd3 {[%emt 0:00:00]} Kb5 {[%emt 0:00:00]} 96. Rd5 {[%emt 0:00:01]} Kc4 {[%emt 0:00:01]} 97. Rxc5+ {[%emt 0:00:00]} Kxc5 {[%emt 0:00:01]} 1/2-1/2

[Event "CCT Chessable Masters Play-In 2025"]
[Site "Online"]
[Date "2025.02.17"]
[Round "1.49"]
[White "Anton Guijarro, David"]
[Black "Moiseenko, Alexander"]
[Result "1-0"]
[ECO "B51"]
[WhiteElo "2668"]
[BlackElo "2568"]
[PlyCount "91"]
[EventDate "2025.02.13"]
[EventType "swiss"]
[EventCountry "NET"]
[TimeControl "600"]
[WhiteClock "0:01:53"]
[BlackClock "0:00:13"]

1. e4 {[%emt 0:00:01]} c5 {[%emt 0:00:19]} 2. Nf3 {[%emt 0:00:01]} Nc6 {[%emt 0:00:08]} 3. Bb5 {[%emt 0:00:01]} d6 {[%emt 0:00:01]} 4. O-O {[%emt 0:00:01]} Bd7 {[%emt 0:00:02]} 5. Re1 {[%emt 0:00:02]} Nf6 {[%emt 0:00:01]} 6. h3 {[%emt 0:00:04]} a6 {[%emt 0:00:27]} 7. Bf1 {[%emt 0:00:02]} e5 {[%emt 0:00:29]} 8. c3 {[%emt 0:00:05]} g5 {[%emt 0:00:01]} 9. d4 {[%emt 0:00:34]} g4 {[%emt 0:00:16]} 10. d5 {[%emt 0:00:22]} Ne7 {[%emt 0:00:20]} 11. hxg4 {[%emt 0:00:25]} Bxg4 {[%emt 0:00:08]} 12. Bg5 {[%emt 0:00:01]} Ng6 {[%emt 0:00:34]} 13. Nbd2 {[%emt 0:00:01]} h6 {[%emt 0:00:06]} 14. Be3 {[%emt 0:00:02]} Be7 {[%emt 0:00:09]} 15. Qb3 {[%emt 0:00:04]} Rb8 {[%emt 0:00:22]} 16. Nh2 {[%emt 0:00:11]} Bd7 {[%emt 0:00:05]} 17. a4 {[%emt 0:00:01]} h5 {[%emt 0:00:14]} 18. a5 {[%emt 0:00:06]} Ng4 {[%emt 0:00:02]} 19. Nxg4 {[%emt 0:00:05]} hxg4 {[%emt 0:00:01]} 20. g3 {[%emt 0:00:06]} Bg5 {[%emt 0:01:04]} 21. Nc4 {[%emt 0:00:48]} Bxe3 {[%emt 0:00:13]} 22. Nxd6+ {[%emt 0:00:21]} Ke7 {[%emt 0:00:01]} 23. Nf5+ {[%emt 0:00:05]} Bxf5 {[%emt 0:00:01]} 24. exf5 {[%emt 0:00:00]} Nh4 {[%emt 0:00:01]} 25. Rxe3 {[%emt 0:01:00]} Nf3+ {[%emt 0:00:03]} 26. Rxf3 {[%emt 0:00:01]} gxf3 {[%emt 0:00:00]} 27. Qd1 {[%emt 0:00:03]} Kd6 {[%emt 0:01:00]} 28. Qxf3 {[%emt 0:00:04]} Qg5 {[%emt 0:00:02]} 29. b4 {[%emt 0:01:16]} cxb4 {[%emt 0:00:04]} 30. Qe4 {[%emt 0:00:01]} bxc3 {[%emt 0:00:20]} 31. Qb4+ {[%emt 0:00:08]} Kd7 {[%emt 0:00:04]} 32. Qxc3 {[%emt 0:00:26]} Rbc8 {[%emt 0:00:11]} 33. Qb2 {[%emt 0:00:23]} Qxf5 {[%emt 0:00:42]} 34. Qxb7+ {[%emt 0:00:12]} Rc7 {[%emt 0:00:02]} 35. Qxa6 {[%emt 0:00:01]} Rc2 {[%emt 0:00:39]} 36. Qa7+ {[%emt 0:00:15]} Ke8 {[%emt 0:00:31]} 37. Qb8+ {[%emt 0:00:05]} Ke7 {[%emt 0:00:01]} 38. d6+ {[%emt 0:00:08]} Kd7 {[%emt 0:00:18]} 39. Bb5+ {[%emt 0:00:04]} Ke6 {[%emt 0:00:00]} 40. Bc4+ {[%emt 0:00:03]} Rxc4 {[%emt 0:00:04]} 41. Qxh8 {[%emt 0:00:01]} Kxd6 {[%emt 0:00:06]} 42. Qb8+ {[%emt 0:00:08]} Ke7 {[%emt 0:00:05]} 43. a6 {[%emt 0:00:04]} Rc2 {[%emt 0:00:13]} 44. Qb4+ {[%emt 0:00:07]} Kf6 {[%emt 0:00:12]} 45. Qb6+ {[%emt 0:00:06]} Kg7 {[%emt 0:00:05]} 46. a7 {[%emt 0:00:02]} 1-0

[Event "CCT Chessable Masters Play-In 2025"]
[Site "Online"]
[Date "2025.02.17"]
[Round "1.50"]
[White "Bologan, Victor"]
[Black "Svidler, Peter"]
[Result "1-0"]
[ECO "B51"]
[WhiteElo "2603"]
[BlackElo "2696"]
[PlyCount "77"]
[EventDate "2025.02.13"]
[EventType "swiss"]
[EventCountry "NET"]
[TimeControl "600"]
[WhiteClock "0:00:52"]
[BlackClock "0:00:15"]

1. e4 {[%emt 0:00:03]} c5 {[%emt 0:00:16]} 2. Nf3 {[%emt 0:00:01]} d6 {[%emt 0:00:03]} 3. Bb5+ {[%emt 0:00:02]} Nd7 {[%emt 0:00:01]} 4. O-O {[%emt 0:00:08]} a6 {[%emt 0:00:02]} 5. Bd3 {[%emt 0:00:02]} Ngf6 {[%emt 0:00:10]} 6. c3 {[%emt 0:00:01]} b5 {[%emt 0:00:54]} 7. Bc2 {[%emt 0:00:05]} Bb7 {[%emt 0:00:03]} 8. Re1 {[%emt 0:00:09]} Rc8 {[%emt 0:00:03]} 9. a4 {[%emt 0:00:09]} b4 {[%emt 0:00:27]} 10. cxb4 {[%emt 0:00:18]} cxb4 {[%emt 0:00:01]} 11. d4 {[%emt 0:00:02]} Qc7 {[%emt 0:00:05]} 12. Bd3 {[%emt 0:01:05]} Nxe4 {[%emt 0:00:22]} 13. Nbd2 {[%emt 0:00:05]} Nef6 {[%emt 0:00:04]} 14. Qe2 {[%emt 0:00:06]} a5 {[%emt 0:00:28]} 15. Nc4 {[%emt 0:00:04]} Bd5 {[%emt 0:00:32]} 16. Bf4 {[%emt 0:00:39]} Kd8 {[%emt 0:01:27]} 17. Rac1 {[%emt 0:00:10]} Qa7 {[%emt 0:00:03]} 18. Ne3 {[%emt 0:00:42]} Rxc1 {[%emt 0:00:50]} 19. Rxc1 {[%emt 0:00:02]} e6 {[%emt 0:00:00]} 20. Ng5 {[%emt 0:00:20]} Nb6 {[%emt 0:00:02]} 21. Bb5 {[%emt 0:01:03]} h6 {[%emt 0:00:16]} 22. Nxd5 {[%emt 0:00:16]} Nfxd5 {[%emt 0:00:13]} 23. Nh3 {[%emt 0:00:46]} g5 {[%emt 0:00:21]} 24. Bg3 {[%emt 0:00:14]} Ke7 {[%emt 0:00:09]} 25. Bxd6+ {[%emt 0:00:06]} Kxd6 {[%emt 0:00:11]} 26. Qe5+ {[%emt 0:00:02]} Ke7 {[%emt 0:00:01]} 27. Qxh8 {[%emt 0:00:02]} Nf6 {[%emt 0:00:03]} 28. d5 {[%emt 0:00:19]} Nfxd5 {[%emt 0:00:31]} 29. Qd4 {[%emt 0:00:12]} Qb8 {[%emt 0:00:12]} 30. Rc6 {[%emt 0:00:08]} Qd8 {[%emt 0:00:02]} 31. f4 {[%emt 0:00:10]} gxf4 {[%emt 0:00:36]} 32. Nf2 {[%emt 0:00:19]} Nd7 {[%emt 0:00:17]} 33. Ne4 {[%emt 0:00:19]} f5 {[%emt 0:00:14]} 34. Nd6 {[%emt 0:00:25]} N7f6 {[%emt 0:00:07]} 35. Qe5 {[%emt 0:00:05]} Qd7 {[%emt 0:00:17]} 36. Nxf5+ {[%emt 0:00:09]} Kf7 {[%emt 0:00:02]} 37. Nd4 {[%emt 0:00:04]} Qa7 {[%emt 0:00:09]} 38. Kh1 {[%emt 0:00:13]} Be7 {[%emt 0:00:11]} 39. Qxe6+ {[%emt 0:00:03]} 1-0

[Event "CCT Chessable Masters Play-In 2025"]
[Site "Online"]
[Date "2025.02.17"]
[Round "1.51"]
[White "Harikrishna, Pentala"]
[Black "Gharibyan, Mamikon"]
[Result "1/2-1/2"]
[ECO "C78"]
[WhiteElo "2695"]
[BlackElo "2473"]
[PlyCount "122"]
[EventDate "2025.02.13"]
[EventType "swiss"]
[EventCountry "NET"]
[TimeControl "600"]
[WhiteClock "0:03:08"]
[BlackClock "0:01:30"]

1. e4 {[%emt 0:00:02]} e5 {[%emt 0:00:02]} 2. Nf3 {[%emt 0:00:01]} Nc6 {[%emt 0:00:00]} 3. Bb5 {[%emt 0:00:02]} a6 {[%emt 0:00:01]} 4. Ba4 {[%emt 0:00:00]} Nf6 {[%emt 0:00:01]} 5. O-O {[%emt 0:00:02]} Bc5 {[%emt 0:00:01]} 6. c3 {[%emt 0:00:11]} O-O {[%emt 0:00:01]} 7. d4 {[%emt 0:00:13]} Ba7 {[%emt 0:00:01]} 8. Re1 {[%emt 0:00:35]} d6 {[%emt 0:00:02]} 9. Bxc6 {[%emt 0:00:10]} bxc6 {[%emt 0:00:02]} 10. h3 {[%emt 0:00:01]} Qe7 {[%emt 0:00:14]} 11. dxe5 {[%emt 0:00:13]} dxe5 {[%emt 0:00:02]} 12. Be3 {[%emt 0:00:02]} a5 {[%emt 0:00:15]} 13. Qa4 {[%emt 0:00:17]} Bd7 {[%emt 0:00:11]} 14. Bxa7 {[%emt 0:00:14]} Rxa7 {[%emt 0:00:01]} 15. Qa3 {[%emt 0:00:01]} c5 {[%emt 0:00:29]} 16. Nbd2 {[%emt 0:00:12]} Bb5 {[%emt 0:00:05]} 17. Rad1 {[%emt 0:00:18]} a4 {[%emt 0:00:18]} 18. b4 {[%emt 0:00:37]} Rd8 {[%emt 0:01:00]} 19. bxc5 {[%emt 0:00:02]} h6 {[%emt 0:00:05]} 20. Qb4 {[%emt 0:00:05]} Rb7 {[%emt 0:00:24]} 21. c6 {[%emt 0:00:04]} Qxb4 {[%emt 0:00:03]} 22. cxb4 {[%emt 0:00:00]} Bxc6 {[%emt 0:00:02]} 23. Nxe5 {[%emt 0:00:07]} Bxe4 {[%emt 0:00:07]} 24. Nxe4 {[%emt 0:00:11]} Rxd1 {[%emt 0:00:02]} 25. Rxd1 {[%emt 0:00:08]} Nxe4 {[%emt 0:00:02]} 26. a3 {[%emt 0:00:08]} Nd6 {[%emt 0:00:19]} 27. Nd7 {[%emt 0:00:15]} f6 {[%emt 0:00:09]} 28. Nc5 {[%emt 0:00:03]} Rb8 {[%emt 0:00:05]} 29. Rd3 {[%emt 0:00:02]} Ra8 {[%emt 0:00:46]} 30. g4 {[%emt 0:00:02]} Kf7 {[%emt 0:00:03]} 31. f4 {[%emt 0:00:01]} g6 {[%emt 0:00:04]} 32. Kf2 {[%emt 0:00:12]} Ke7 {[%emt 0:00:13]} 33. Kf3 {[%emt 0:00:03]} h5 {[%emt 0:00:08]} 34. Re3+ {[%emt 0:00:04]} Kf7 {[%emt 0:00:02]} 35. g5 {[%emt 0:00:03]} fxg5 {[%emt 0:00:08]} 36. fxg5 {[%emt 0:00:01]} Nc4 {[%emt 0:00:43]} 37. Rc3 {[%emt 0:00:04]} Nb6 {[%emt 0:00:22]} 38. Nd3 {[%emt 0:00:02]} Nd5 {[%emt 0:00:06]} 39. Rc6 {[%emt 0:00:10]} Re8 {[%emt 0:00:02]} 40. Nf4 {[%emt 0:00:09]} Re3+ {[%emt 0:00:18]} 41. Kf2 {[%emt 0:00:01]} Re5 {[%emt 0:00:01]} 42. Nxd5 {[%emt 0:00:06]} Rxd5 {[%emt 0:00:00]} 43. Rxc7+ {[%emt 0:00:01]} Ke6 {[%emt 0:00:01]} 44. Rc6+ {[%emt 0:00:30]} Kf5 {[%emt 0:00:30]} 45. Ra6 {[%emt 0:00:01]} Rd3 {[%emt 0:00:10]} 46. Rxa4 {[%emt 0:00:08]} Kxg5 {[%emt 0:00:01]} 47. b5 {[%emt 0:00:09]} Rb3 {[%emt 0:00:04]} 48. Rb4 {[%emt 0:00:04]} Rxa3 {[%emt 0:00:02]} 49. b6 {[%emt 0:00:02]} Ra8 {[%emt 0:00:00]} 50. b7 {[%emt 0:00:04]} Rb8 {[%emt 0:00:01]} 51. h4+ {[%emt 0:00:04]} Kf5 {[%emt 0:00:02]} 52. Kf3 {[%emt 0:00:02]} Ke5 {[%emt 0:00:03]} 53. Rb5+ {[%emt 0:00:02]} Kd6 {[%emt 0:00:10]} 54. Kf4 {[%emt 0:00:01]} Kc6 {[%emt 0:00:08]} 55. Rg5 {[%emt 0:00:13]} Rxb7 {[%emt 0:00:03]} 56. Rxg6+ {[%emt 0:00:01]} Kd5 {[%emt 0:00:04]} 57. Kg5 {[%emt 0:00:01]} Rh7 {[%emt 0:00:04]} 58. Rh6 {[%emt 0:00:11]} Rxh6 {[%emt 0:00:04]} 59. Kxh6 {[%emt 0:00:01]} Ke6 {[%emt 0:00:00]} 60. Kg6 {[%emt 0:00:00]} Ke7 {[%emt 0:00:01]} 61. Kxh5 {[%emt 0:00:03]} Kf7 {[%emt 0:00:02]} 1/2-1/2

[Event "CCT Chessable Masters Play-In 2025"]
[Site "Online"]
[Date "2025.02.17"]
[Round "1.52"]
[White "Perez Ponsa, Federico"]
[Black "Kuzubov, Yuriy"]
[Result "1/2-1/2"]
[ECO "B30"]
[WhiteElo "2528"]
[BlackElo "2597"]
[PlyCount "205"]
[EventDate "2025.02.13"]
[EventType "swiss"]
[EventCountry "NET"]
[TimeControl "600"]
[WhiteClock "0:01:12"]
[BlackClock "0:01:24"]

1. e4 {[%emt 0:00:15]} c5 {[%emt 0:00:03]} 2. Nf3 {[%emt 0:00:01]} Nc6 {[%emt 0:00:01]} 3. Bb5 {[%emt 0:00:02]} e6 {[%emt 0:00:02]} 4. Bxc6 {[%emt 0:00:01]} bxc6 {[%emt 0:00:01]} 5. d3 {[%emt 0:00:00]} Ne7 {[%emt 0:00:03]} 6. Nbd2 {[%emt 0:00:02]} Ng6 {[%emt 0:00:07]} 7. h4 {[%emt 0:00:06]} h5 {[%emt 0:00:06]} 8. e5 {[%emt 0:00:02]} f6 {[%emt 0:00:16]} 9. Nc4 {[%emt 0:00:15]} Ba6 {[%emt 0:00:21]} 10. Qe2 {[%emt 0:00:05]} Qc7 {[%emt 0:01:08]} 11. Qe4 {[%emt 0:00:02]} Kf7 {[%emt 0:00:06]} 12. Bf4 {[%emt 0:00:01]} Bxc4 {[%emt 0:01:33]} 13. dxc4 {[%emt 0:00:05]} d5 {[%emt 0:00:45]} 14. exd6 {[%emt 0:01:29]} Bxd6 {[%emt 0:00:02]} 15. Bxd6 {[%emt 0:00:44]} Qxd6 {[%emt 0:00:00]} 16. Rd1 {[%emt 0:00:01]} Qc7 {[%emt 0:00:01]} 17. O-O {[%emt 0:00:01]} Rhd8 {[%emt 0:00:07]} 18. Rfe1 {[%emt 0:00:04]} Rd6 {[%emt 0:00:06]} 19. Rd3 {[%emt 0:00:11]} Rad8 {[%emt 0:00:04]} 20. Ng5+ {[%emt 0:00:14]} fxg5 {[%emt 0:00:09]} 21. Rf3+ {[%emt 0:00:00]} Kg8 {[%emt 0:00:48]} 22. Qxg6 {[%emt 0:00:03]} gxh4 {[%emt 0:00:01]} 23. Qxh5 {[%emt 0:00:09]} Rd1 {[%emt 0:00:20]} 24. Rfe3 {[%emt 0:00:11]} Rxe1+ {[%emt 0:00:05]} 25. Rxe1 {[%emt 0:00:00]} Qa5 {[%emt 0:00:17]} 26. Rxe6 {[%emt 0:00:13]} Qxa2 {[%emt 0:00:02]} 27. Qxh4 {[%emt 0:00:38]} Rf8 {[%emt 0:00:14]} 28. Rxc6 {[%emt 0:00:21]} Qxb2 {[%emt 0:00:07]} 29. Rxc5 {[%emt 0:00:01]} Qxc2 {[%emt 0:00:05]} 30. Rh5 {[%emt 0:00:07]} Qc1+ {[%emt 0:00:07]} 31. Kh2 {[%emt 0:00:02]} Qf4+ {[%emt 0:00:01]} 32. Qxf4 {[%emt 0:00:28]} Rxf4 {[%emt 0:00:00]} 33. Ra5 {[%emt 0:00:00]} Rxc4 {[%emt 0:00:01]} 34. Rxa7 {[%emt 0:00:01]} Kh7 {[%emt 0:00:01]} 35. Ra6 {[%emt 0:00:02]} g6 {[%emt 0:00:03]} 36. Kg3 {[%emt 0:00:01]} Kg7 {[%emt 0:00:01]} 37. Ra7+ {[%emt 0:00:00]} Kf6 {[%emt 0:00:01]} 38. Ra5 {[%emt 0:00:00]} Rb4 {[%emt 0:00:01]} 39. Ra6+ {[%emt 0:00:01]} Kg7 {[%emt 0:00:01]} 40. Ra5 {[%emt 0:00:00]} Kf6 {[%emt 0:00:01]} 41. f3 {[%emt 0:00:00]} Rc4 {[%emt 0:00:01]} 42. Rb5 {[%emt 0:00:01]} Kg7 {[%emt 0:00:01]} 43. Rd5 {[%emt 0:00:02]} Kf6 {[%emt 0:00:01]} 44. Ra5 {[%emt 0:00:01]} Rb4 {[%emt 0:00:00]} 45. Ra6+ {[%emt 0:00:00]} Kg7 {[%emt 0:00:01]} 46. Rc6 {[%emt 0:00:01]} Kf7 {[%emt 0:00:01]} 47. Rd6 {[%emt 0:00:01]} Kg7 {[%emt 0:00:01]} 48. f4 {[%emt 0:00:01]} Rb2 {[%emt 0:00:02]} 49. Kf3 {[%emt 0:00:01]} Kf7 {[%emt 0:00:01]} 50. Ra6 {[%emt 0:00:00]} Rc2 {[%emt 0:00:02]} 51. Ra7+ {[%emt 0:00:01]} Kf6 {[%emt 0:00:01]} 52. Ra6+ {[%emt 0:00:01]} Kf7 {[%emt 0:00:01]} 53. g3 {[%emt 0:00:01]} Rc3+ {[%emt 0:00:02]} 54. Kg4 {[%emt 0:00:01]} Kg7 {[%emt 0:00:01]} 55. Ra7+ {[%emt 0:00:04]} Kf6 {[%emt 0:00:01]} 56. Rb7 {[%emt 0:00:03]} Rd3 {[%emt 0:00:02]} 57. Rb6+ {[%emt 0:00:01]} Kg7 {[%emt 0:00:01]} 58. Rb5 {[%emt 0:00:01]} Rc3 {[%emt 0:00:01]} 59. Ra5 {[%emt 0:00:08]} Rb3 {[%emt 0:00:01]} 60. Kh4 {[%emt 0:00:01]} Kf6 {[%emt 0:00:01]} 61. g4 {[%emt 0:00:03]} Rb7 {[%emt 0:00:04]} 62. Rc5 {[%emt 0:00:10]} Kg7 {[%emt 0:00:02]} 63. Rc6 {[%emt 0:00:05]} Rb5 {[%emt 0:00:02]} 64. Rc7+ {[%emt 0:00:01]} Kf8 {[%emt 0:00:05]} 65. Ra7 {[%emt 0:00:05]} g5+ {[%emt 0:00:02]} 66. fxg5 {[%emt 0:00:03]} Kg8 {[%emt 0:00:01]} 67. Kh5 {[%emt 0:00:03]} Rb6 {[%emt 0:00:01]} 68. Ra5 {[%emt 0:00:06]} Rc6 {[%emt 0:00:01]} 69. Ra8+ {[%emt 0:00:06]} Kg7 {[%emt 0:00:01]} 70. Ra7+ {[%emt 0:00:00]} Kg8 {[%emt 0:00:01]} 71. Ra5 {[%emt 0:00:00]} Kg7 {[%emt 0:00:01]} 72. Ra7+ {[%emt 0:00:04]} Kg8 {[%emt 0:00:00]} 73. Rd7 {[%emt 0:00:00]} Rb6 {[%emt 0:00:01]} 74. Rc7 {[%emt 0:00:01]} Rd6 {[%emt 0:00:01]} 75. Rc1 {[%emt 0:00:08]} Kg7 {[%emt 0:00:01]} 76. Re1 {[%emt 0:00:02]} Ra6 {[%emt 0:00:02]} 77. Re7+ {[%emt 0:00:06]} Kg8 {[%emt 0:00:00]} 78. g6 {[%emt 0:00:08]} Ra1 {[%emt 0:00:02]} 79. Kg5 {[%emt 0:00:04]} Rb1 {[%emt 0:00:01]} 80. Re5 {[%emt 0:00:01]} Rc1 {[%emt 0:00:02]} 81. Rb5 {[%emt 0:00:01]} Ra1 {[%emt 0:00:02]} 82. Rb8+ {[%emt 0:00:01]} Kg7 {[%emt 0:00:00]} 83. Rb7+ {[%emt 0:00:01]} Kg8 {[%emt 0:00:01]} 84. Rb3 {[%emt 0:00:07]} Rc1 {[%emt 0:00:01]} 85. Rf3 {[%emt 0:00:00]} Ra1 {[%emt 0:00:01]} 86. Re3 {[%emt 0:00:03]} Rb1 {[%emt 0:00:01]} 87. Re5 {[%emt 0:00:02]} Ra1 {[%emt 0:00:01]} 88. Re8+ {[%emt 0:00:13]} Kg7 {[%emt 0:00:01]} 89. Re7+ {[%emt 0:00:00]} Kg8 {[%emt 0:00:00]} 90. Rb7 {[%emt 0:00:01]} Rc1 {[%emt 0:00:01]} 91. g7 {[%emt 0:00:02]} Rc6 {[%emt 0:00:01]} 92. Kh5 {[%emt 0:00:06]} Ra6 {[%emt 0:00:02]} 93. Rd7 {[%emt 0:00:06]} Rc6 {[%emt 0:00:01]} 94. g5 {[%emt 0:00:01]} Ra6 {[%emt 0:00:01]} 95. Re7 {[%emt 0:00:02]} Rb6 {[%emt 0:00:01]} 96. Kg4 {[%emt 0:00:02]} Rb5 {[%emt 0:00:02]} 97. Rc7 {[%emt 0:00:05]} Ra5 {[%emt 0:00:01]} 98. Kh4 {[%emt 0:00:01]} Rb5 {[%emt 0:00:01]} 99. Kh5 {[%emt 0:00:01]} Rb6 {[%emt 0:00:01]} 100. Rd7 {[%emt 0:00:00]} Ra6 {[%emt 0:00:01]} 101. g6 {[%emt 0:00:04]} Ra5+ {[%emt 0:00:02]} 102. Kh6 {[%emt 0:00:03]} Rh5+ {[%emt 0:00:01]} 103. Kxh5 {[%emt 0:00:01]} 1/2-1/2